[Event "*** Titled Tuesday Blitz"]
[Site "Chess.com"]
[Date "2020.12.01"]
[Round "5"]
[White "ybruned"]
[Black "Bulldog167"]
[Result "0-1"]
[WhiteElo "2291"]
[BlackElo "2598"]
[TimeControl "180+1"]
[EndTime "10:56:04 PST"]
[Termination "Bulldog167 won on time"]

1. Nf3 {[%clk 0:03:00.2]} 1... g5 {[%clk 0:02:46.4]} 2. Nxg5 {[%clk 0:02:54.2]}
2... e5 {[%clk 0:02:46]} 3. Nf3 {[%clk 0:02:52]} 3... e4 {[%clk 0:02:45.9]} 4.
Ng1 {[%clk 0:02:52.7]} 4... d5 {[%clk 0:02:45.8]} 5. d3 {[%clk 0:02:53.3]} 5...
f5 {[%clk 0:02:43.5]} 6. g3 {[%clk 0:02:51.7]} 6... Bg7 {[%clk 0:02:36.8]} 7.
Bg2 {[%clk 0:02:49.9]} 7... Nc6 {[%clk 0:02:34.5]} 8. c3 {[%clk 0:02:48.8]} 8...
Be6 {[%clk 0:02:30.7]} 9. Nh3 {[%clk 0:02:41.7]} 9... Nf6 {[%clk 0:02:29]} 10.
d4 {[%clk 0:02:36.9]} 10... Ne7 {[%clk 0:02:25.1]} 11. Bg5 {[%clk 0:02:34.4]}
11... Ng6 {[%clk 0:02:21.5]} 12. Bxf6 {[%clk 0:02:24.1]} 12... Qxf6 {[%clk
0:02:20.8]} 13. e3 {[%clk 0:02:23.9]} 13... h5 {[%clk 0:02:19]} 14. Nd2 {[%clk
0:02:23.8]} 14... h4 {[%clk 0:02:19.1]} 15. Qe2 {[%clk 0:02:20.7]} 15... O-O-O
{[%clk 0:02:18.9]} 16. O-O-O {[%clk 0:02:20.1]} 16... Kb8 {[%clk 0:02:16.6]} 17.
Kb1 {[%clk 0:02:09.1]} 17... Rd6 {[%clk 0:01:58.6]} 18. Rc1 {[%clk 0:02:04.2]}
18... Ra6 {[%clk 0:01:54]} 19. Rhd1 {[%clk 0:01:54.5]} 19... Rc8 {[%clk
0:01:34.5]} 20. Nb3 {[%clk 0:01:43.6]} 20... Bf8 {[%clk 0:01:26.2]} 21. Nf4
{[%clk 0:01:36.7]} 21... Nxf4 {[%clk 0:01:25.3]} 22. exf4 {[%clk 0:01:36.9]}
22... Bd7 {[%clk 0:01:10]} 23. Nc5 {[%clk 0:01:16.6]} 23... Bxc5 {[%clk
0:01:08.5]} 24. dxc5 {[%clk 0:01:16.2]} 24... Ra5 {[%clk 0:01:06.6]} 25. Qe3
{[%clk 0:01:14]} 25... Bb5 {[%clk 0:01:01.7]} 26. Bf1 {[%clk 0:01:13.5]} 26...
Bxf1 {[%clk 0:01:00.9]} 27. Rxf1 {[%clk 0:01:12.8]} 27... Qa6 {[%clk 0:01:01.5]}
28. a3 {[%clk 0:01:10.5]} 28... Qc4 {[%clk 0:01:01.1]} 29. Rfd1 {[%clk
0:01:04.5]} 29... c6 {[%clk 0:00:57.1]} 30. Rd4 {[%clk 0:00:58.7]} 30... Qxc5
{[%clk 0:00:55.6]} 31. Rb4 {[%clk 0:00:33.6]} 31... Qxe3 {[%clk 0:00:48.8]} 32.
fxe3 {[%clk 0:00:34.2]} 32... hxg3 {[%clk 0:00:49.1]} 33. hxg3 {[%clk
0:00:34.1]} 33... Rg8 {[%clk 0:00:49.6]} 34. Rg1 {[%clk 0:00:31.5]} 34... c5
{[%clk 0:00:49.5]} 35. Rb3 {[%clk 0:00:30.1]} 35... c4 {[%clk 0:00:43.7]} 36.
Rb4 {[%clk 0:00:28.7]} 36... Kc7 {[%clk 0:00:41.8]} 37. Kc2 {[%clk 0:00:25.9]}
37... Rc5 {[%clk 0:00:39.3]} 38. b3 {[%clk 0:00:20.5]} 38... a5 {[%clk
0:00:32.9]} 39. Ra4 {[%clk 0:00:18.6]} 39... b6 {[%clk 0:00:26.8]} 40. b4 {[%clk
0:00:16.8]} 40... Rc6 {[%clk 0:00:24.2]} 41. bxa5 {[%clk 0:00:15.9]} 41... b5
{[%clk 0:00:18.6]} 42. Rb4 {[%clk 0:00:16]} 42... Rc5 {[%clk 0:00:18.3]} 43. a4
{[%clk 0:00:13.7]} 43... bxa4 {[%clk 0:00:17.2]} 44. Rxa4 {[%clk 0:00:14]} 44...
Kb7 {[%clk 0:00:15.5]} 45. a6+ {[%clk 0:00:11.1]} 45... Ka7 {[%clk 0:00:15.3]}
46. Rb1 {[%clk 0:00:11.4]} 46... Rc7 {[%clk 0:00:14.4]} 47. Ra5 {[%clk
0:00:07.1]} 47... Rxg3 {[%clk 0:00:12.5]} 48. Rb7+ {[%clk 0:00:05.4]} 48... Rxb7
{[%clk 0:00:11.7]} 49. axb7+ {[%clk 0:00:06.1]} 49... Kxb7 {[%clk 0:00:11.7]}
50. Rxd5 {[%clk 0:00:06.8]} 50... Rxe3 {[%clk 0:00:09.4]} 51. Rxf5 {[%clk
0:00:05.5]} 51... Kc6 {[%clk 0:00:09]} 52. Re5 {[%clk 0:00:03.4]} 52... Kd6
{[%clk 0:00:07.2]} 53. Re8 {[%clk 0:00:03.3]} 53... Kd5 {[%clk 0:00:07]} 54. f5
{[%clk 0:00:03.4]} 54... Rf3 {[%clk 0:00:06.6]} 55. Rd8+ {[%clk 0:00:03.5]}
55... Ke5 {[%clk 0:00:06.7]} 56. Re8+ {[%clk 0:00:03.3]} 56... Kf4 {[%clk
0:00:05.8]} 57. f6 {[%clk 0:00:03]} 57... Ke3 {[%clk 0:00:05.6]} 58. f7 {[%clk
0:00:02.3]} 58... Rf2+ {[%clk 0:00:06.2]} 59. Kd1 {[%clk 0:00:01.7]} 59... Rxf7
{[%clk 0:00:07.1]} 60. Rh8 {[%clk 0:00:01.9]} 60... Rf1+ {[%clk 0:00:06.7]} 61.
Kc2 {[%clk 0:00:01.6]} 61... Rf2+ {[%clk 0:00:07.3]} 0-1

[Event "*** Titled Tuesday Blitz"]
[Site "Chess.com"]
[Date "2020.12.01"]
[Round "5"]
[White "anon481216"]
[Black "Natalya_Buksa"]
[Result "1/2-1/2"]
[WhiteElo "2406"]
[BlackElo "2573"]
[TimeControl "180+1"]
[EndTime "10:56:05 PST"]
[Termination "Game drawn by repetition"]

1. d4 {[%clk 0:03:00.9]} 1... d5 {[%clk 0:02:59.5]} 2. c4 {[%clk 0:03:00.4]}
2... e6 {[%clk 0:03:00.1]} 3. Nf3 {[%clk 0:03:00.5]} 3... Nf6 {[%clk 0:02:59.2]}
4. Nc3 {[%clk 0:03:00.4]} 4... Be7 {[%clk 0:02:58.2]} 5. Bg5 {[%clk 0:02:59.4]}
5... O-O {[%clk 0:02:56.9]} 6. e3 {[%clk 0:02:59.5]} 6... h6 {[%clk 0:02:57.4]}
7. Bh4 {[%clk 0:02:59.1]} 7... Ne4 {[%clk 0:02:58]} 8. Bxe7 {[%clk 0:02:57.8]}
8... Qxe7 {[%clk 0:02:58.9]} 9. Rc1 {[%clk 0:02:57.8]} 9... c6 {[%clk
0:02:57.1]} 10. Bd3 {[%clk 0:02:56.8]} 10... Nxc3 {[%clk 0:02:56.4]} 11. Rxc3
{[%clk 0:02:56.3]} 11... dxc4 {[%clk 0:02:56.9]} 12. Bxc4 {[%clk 0:02:55.1]}
12... Nd7 {[%clk 0:02:57.2]} 13. Qc2 {[%clk 0:02:48.3]} 13... b6 {[%clk
0:02:55.9]} 14. O-O {[%clk 0:02:38.1]} 14... c5 {[%clk 0:02:56.3]} 15. dxc5
{[%clk 0:02:32.5]} 15... Nxc5 {[%clk 0:02:56]} 16. b4 {[%clk 0:02:31.3]} 16...
Nd7 {[%clk 0:02:55.4]} 17. a3 {[%clk 0:02:31.1]} 17... Bb7 {[%clk 0:02:54.9]}
18. Nd4 {[%clk 0:02:29.7]} 18... Rac8 {[%clk 0:02:48.1]} 19. Rc1 {[%clk
0:02:28.2]} 19... Ne5 {[%clk 0:02:42.3]} 20. Be2 {[%clk 0:02:22.1]} 20... Rxc3
{[%clk 0:02:40.8]} 21. Qxc3 {[%clk 0:02:22.1]} 21... Rc8 {[%clk 0:02:41.1]} 22.
Qd2 {[%clk 0:02:19.6]} 22... Rxc1+ {[%clk 0:02:33.1]} 23. Qxc1 {[%clk
0:02:19.6]} 23... g6 {[%clk 0:02:33.4]} 24. f3 {[%clk 0:02:15.2]} 24... Qd6
{[%clk 0:02:27.5]} 25. Qc3 {[%clk 0:02:09.8]} 25... h5 {[%clk 0:02:25.8]} 26. e4
{[%clk 0:02:03.5]} 26... h4 {[%clk 0:02:24.9]} 27. Nb5 {[%clk 0:01:57.1]} 27...
Qb8 {[%clk 0:02:23.2]} 28. Nxa7 {[%clk 0:01:55.6]} 28... Nxf3+ {[%clk
0:02:13.9]} 29. gxf3 {[%clk 0:01:54.8]} 29... Qxa7 {[%clk 0:02:13.9]} 30. Qc7
{[%clk 0:01:52.6]} 30... h3 {[%clk 0:02:00.4]} 31. Kf1 {[%clk 0:01:22.4]} 31...
b5 {[%clk 0:01:48.3]} 32. Bxb5 {[%clk 0:01:15.5]} 32... Qxa3 {[%clk 0:01:43.3]}
33. Qxb7 {[%clk 0:01:03.5]} 33... Qxf3+ {[%clk 0:01:43.4]} 34. Ke1 {[%clk
0:01:03.7]} 34... Qe3+ {[%clk 0:01:40]} 35. Be2 {[%clk 0:01:00.7]} 35... Qg1+
{[%clk 0:01:36.2]} 36. Kd2 {[%clk 0:00:47.3]} 36... Qxh2 {[%clk 0:01:36.2]} 37.
Qc8+ {[%clk 0:00:41.8]} 37... Kh7 {[%clk 0:01:34.7]} 38. Qc3 {[%clk 0:00:25.5]}
38... Qd6+ {[%clk 0:01:33.1]} 39. Kc2 {[%clk 0:00:21.5]} 39... h2 {[%clk
0:01:30.6]} 40. Qh3+ {[%clk 0:00:19.6]} 40... Kg7 {[%clk 0:01:31]} 41. Bd3
{[%clk 0:00:17.3]} 41... Qc7+ {[%clk 0:01:25.5]} 42. Kb3 {[%clk 0:00:15.2]}
42... Qf4 {[%clk 0:01:20.2]} 43. Bf1 {[%clk 0:00:12.6]} 43... Qxe4 {[%clk
0:01:14.1]} 44. Qxh2 {[%clk 0:00:12.5]} 44... Qf3+ {[%clk 0:01:13.8]} 45. Ka4
{[%clk 0:00:11.4]} 45... Qxf1 {[%clk 0:01:14.2]} 46. b5 {[%clk 0:00:11.7]} 46...
Qa1+ {[%clk 0:01:08.6]} 47. Kb4 {[%clk 0:00:11.6]} 47... g5 {[%clk 0:01:04.1]}
48. b6 {[%clk 0:00:11.4]} 48... g4 {[%clk 0:00:57.9]} 49. Kc5 {[%clk 0:00:09.9]}
49... Qc3+ {[%clk 0:00:54.2]} 50. Kd6 {[%clk 0:00:07.1]} 50... g3 {[%clk
0:00:50.4]} 51. Qg2 {[%clk 0:00:07.1]} 51... f5 {[%clk 0:00:47.4]} 52. b7 {[%clk
0:00:07.1]} 52... Qb3 {[%clk 0:00:45.1]} 53. Kc7 {[%clk 0:00:07.3]} 53... Qc3+
{[%clk 0:00:44.1]} 54. Kd7 {[%clk 0:00:07.1]} 54... Qd4+ {[%clk 0:00:41.6]} 55.
Kxe6 {[%clk 0:00:05.1]} 55... Qf6+ {[%clk 0:00:41.1]} 56. Kd7 {[%clk 0:00:04.1]}
56... Qf7+ {[%clk 0:00:41.2]} 57. Kc8 {[%clk 0:00:04.2]} 57... Qf8+ {[%clk
0:00:40.6]} 58. Kc7 {[%clk 0:00:04.5]} 58... Qe7+ {[%clk 0:00:38.4]} 59. Kb6
{[%clk 0:00:03.8]} 59... Qb4+ {[%clk 0:00:37.8]} 60. Ka7 {[%clk 0:00:03.8]}
60... Qa5+ {[%clk 0:00:37.4]} 61. Kb8 {[%clk 0:00:04.1]} 61... f4 {[%clk
0:00:36.4]} 62. Kc8 {[%clk 0:00:04.3]} 62... Qf5+ {[%clk 0:00:33.2]} 63. Kc7
{[%clk 0:00:03.4]} 63... Qe5+ {[%clk 0:00:31.7]} 64. Kc8 {[%clk 0:00:03.4]}
64... Qc5+ {[%clk 0:00:31.2]} 65. Kd7 {[%clk 0:00:03.2]} 65... Qb4 {[%clk
0:00:26.9]} 66. Kc7 {[%clk 0:00:01.7]} 66... Qc3+ {[%clk 0:00:27.1]} 67. Kd7
{[%clk 0:00:02]} 67... Qe5 {[%clk 0:00:23.3]} 68. Kc8 {[%clk 0:00:02.2]} 68...
Qf5+ {[%clk 0:00:18]} 69. Kc7 {[%clk 0:00:02.4]} 69... Qe5+ {[%clk 0:00:18.3]}
70. Kc8 {[%clk 0:00:02.7]} 1/2-1/2

[Event "*** Titled Tuesday Blitz"]
[Site "Chess.com"]
[Date "2020.12.01"]
[Round "5"]
[White "Duhless"]
[Black "AlexeiShirov"]
[Result "1-0"]
[WhiteElo "3005"]
[BlackElo "2850"]
[TimeControl "180+1"]
[EndTime "10:56:07 PST"]
[Termination "Duhless won on time"]

1. d4 {[%clk 0:02:58.9]} 1... d5 {[%clk 0:02:59.4]} 2. c4 {[%clk 0:02:57.5]}
2... c6 {[%clk 0:02:59.2]} 3. Nf3 {[%clk 0:02:57.4]} 3... Nf6 {[%clk 0:02:59.2]}
4. Nc3 {[%clk 0:02:57.9]} 4... e6 {[%clk 0:02:58.1]} 5. Bg5 {[%clk 0:02:56.4]}
5... h6 {[%clk 0:02:57.1]} 6. Bxf6 {[%clk 0:02:56]} 6... Qxf6 {[%clk 0:02:57.1]}
7. e3 {[%clk 0:02:56.4]} 7... Nd7 {[%clk 0:02:53.8]} 8. Be2 {[%clk 0:02:54.9]}
8... dxc4 {[%clk 0:02:37.6]} 9. O-O {[%clk 0:02:53.5]} 9... Bd6 {[%clk
0:02:34.4]} 10. Ne4 {[%clk 0:02:51.4]} 10... Qe7 {[%clk 0:02:33.9]} 11. Nxd6+
{[%clk 0:02:51.8]} 11... Qxd6 {[%clk 0:02:34]} 12. Bxc4 {[%clk 0:02:52.3]} 12...
O-O {[%clk 0:02:30.4]} 13. Rc1 {[%clk 0:02:45.5]} 13... b6 {[%clk 0:02:29.9]}
14. Qe2 {[%clk 0:02:45]} 14... Bb7 {[%clk 0:02:28.8]} 15. Ba6 {[%clk 0:02:43.6]}
15... Bxa6 {[%clk 0:02:15.8]} 16. Qxa6 {[%clk 0:02:44.5]} 16... c5 {[%clk
0:02:14.8]} 17. Rfd1 {[%clk 0:02:43.5]} 17... Qe7 {[%clk 0:02:13.2]} 18. h3
{[%clk 0:02:35.3]} 18... Rfd8 {[%clk 0:02:08.1]} 19. a3 {[%clk 0:02:25.5]} 19...
Qe8 {[%clk 0:01:59.3]} 20. b4 {[%clk 0:02:19.9]} 20... cxd4 {[%clk 0:01:54.6]}
21. Nxd4 {[%clk 0:02:11.7]} 21... Ne5 {[%clk 0:01:51.6]} 22. Qb7 {[%clk
0:01:59.9]} 22... Rd7 {[%clk 0:01:39.2]} 23. Qe4 {[%clk 0:01:57.7]} 23... Ng6
{[%clk 0:01:31.4]} 24. Nc6 {[%clk 0:01:47.2]} 24... Rxd1+ {[%clk 0:01:21.4]} 25.
Rxd1 {[%clk 0:01:46.5]} 25... b5 {[%clk 0:01:20.1]} 26. Rd6 {[%clk 0:01:37.6]}
26... a6 {[%clk 0:01:17.3]} 27. g3 {[%clk 0:01:26.7]} 27... Rc8 {[%clk
0:01:16.3]} 28. Kg2 {[%clk 0:01:25.8]} 28... Nf8 {[%clk 0:01:04.8]} 29. Nd4
{[%clk 0:01:20.1]} 29... Ra8 {[%clk 0:00:59.3]} 30. Qb7 {[%clk 0:01:07]} 30...
e5 {[%clk 0:00:49]} 31. Nc6 {[%clk 0:01:01.6]} 31... Ng6 {[%clk 0:00:47.1]} 32.
h4 {[%clk 0:00:58.6]} 32... h5 {[%clk 0:00:46.4]} 33. Rd7 {[%clk 0:00:45.4]}
33... Rc8 {[%clk 0:00:31]} 34. Ne7+ {[%clk 0:00:30.9]} 34... Nxe7 {[%clk
0:00:30.1]} 35. Rxe7 {[%clk 0:00:31.8]} 35... Qc6+ {[%clk 0:00:30.2]} 36. Qxc6
{[%clk 0:00:30.4]} 36... Rxc6 {[%clk 0:00:29.8]} 37. Rxe5 {[%clk 0:00:30.2]}
37... Rc3 {[%clk 0:00:29]} 38. Rxh5 {[%clk 0:00:28.6]} 38... Rxa3 {[%clk
0:00:27.8]} 39. Rc5 {[%clk 0:00:26.6]} 39... g6 {[%clk 0:00:26.1]} 40. Rc6
{[%clk 0:00:25.1]} 40... Kg7 {[%clk 0:00:25.1]} 41. Kf3 {[%clk 0:00:24.7]} 41...
Ra2 {[%clk 0:00:24.9]} 42. g4 {[%clk 0:00:23]} 42... Kh7 {[%clk 0:00:23.5]} 43.
Rb6 {[%clk 0:00:22.4]} 43... Kg7 {[%clk 0:00:23.3]} 44. Kg3 {[%clk 0:00:22.1]}
44... f5 {[%clk 0:00:21.2]} 45. h5 {[%clk 0:00:19.6]} 45... gxh5 {[%clk
0:00:17.8]} 46. gxf5 {[%clk 0:00:19.2]} 46... Rb2 {[%clk 0:00:16.9]} 47. e4
{[%clk 0:00:11]} 47... Rxb4 {[%clk 0:00:16.5]} 48. Kf4 {[%clk 0:00:11.5]} 48...
h4 {[%clk 0:00:14.6]} 49. Rxa6 {[%clk 0:00:10.5]} 49... h3 {[%clk 0:00:13.6]}
50. Rg6+ {[%clk 0:00:10.4]} 50... Kf7 {[%clk 0:00:13.3]} 51. Rg3 {[%clk
0:00:07.2]} 51... Rb2 {[%clk 0:00:12.5]} 52. Rxh3 {[%clk 0:00:05.6]} 52... Rxf2+
{[%clk 0:00:12.2]} 53. Ke5 {[%clk 0:00:05.1]} 53... Ke7 {[%clk 0:00:08.9]} 54.
Rh7+ {[%clk 0:00:01.9]} 54... Kd8 {[%clk 0:00:08.7]} 55. Ke6 {[%clk 0:00:02.2]}
55... b4 {[%clk 0:00:07.8]} 56. e5 {[%clk 0:00:03.1]} 56... b3 {[%clk
0:00:07.5]} 57. Rd7+ {[%clk 0:00:03.6]} 57... Kc8 {[%clk 0:00:06.9]} 58. Rd3
{[%clk 0:00:03.5]} 58... b2 {[%clk 0:00:06.4]} 59. Rb3 {[%clk 0:00:04]} 59...
Kd8 {[%clk 0:00:04.8]} 60. f6 {[%clk 0:00:04.4]} 60... Rc2 {[%clk 0:00:03.8]}
61. Rd3+ {[%clk 0:00:02.7]} 61... Kc7 {[%clk 0:00:02.5]} 62. Rb3 {[%clk
0:00:03]} 62... Rc6+ {[%clk 0:00:01.3]} 63. Ke7 {[%clk 0:00:02.8]} 1-0

[Event "*** Titled Tuesday Blitz"]
[Site "Chess.com"]
[Date "2020.12.01"]
[Round "5"]
[White "Fandorine"]
[Black "Ginger_GM"]
[Result "1-0"]
[WhiteElo "2854"]
[BlackElo "2615"]
[TimeControl "180+1"]
[EndTime "10:56:08 PST"]
[Termination "Fandorine won by resignation"]

1. c4 {[%clk 0:03:00.9]} 1... f5 {[%clk 0:02:59.6]} 2. e4 {[%clk 0:02:59.4]}
2... fxe4 {[%clk 0:02:59.2]} 3. Nc3 {[%clk 0:02:59.7]} 3... Nf6 {[%clk
0:02:58.8]} 4. d3 {[%clk 0:03:00.3]} 4... e5 {[%clk 0:02:56.9]} 5. dxe4 {[%clk
0:02:47.9]} 5... Bb4 {[%clk 0:02:55.4]} 6. Bd2 {[%clk 0:02:48.4]} 6... O-O
{[%clk 0:02:54.7]} 7. Bd3 {[%clk 0:02:48.3]} 7... d6 {[%clk 0:02:54]} 8. f3
{[%clk 0:02:48.4]} 8... a5 {[%clk 0:02:49.9]} 9. Nge2 {[%clk 0:02:48.7]} 9...
Bc5 {[%clk 0:02:50.1]} 10. Qc2 {[%clk 0:02:45.7]} 10... Nc6 {[%clk 0:02:49.7]}
11. a3 {[%clk 0:02:44.8]} 11... Nd4 {[%clk 0:02:46.2]} 12. Nxd4 {[%clk
0:02:44.7]} 12... Bxd4 {[%clk 0:02:47.1]} 13. O-O-O {[%clk 0:02:44.5]} 13... c6
{[%clk 0:02:47.1]} 14. Kb1 {[%clk 0:02:44.8]} 14... Be6 {[%clk 0:02:46.2]} 15.
Bc1 {[%clk 0:02:44.4]} 15... Rb8 {[%clk 0:02:41]} 16. h4 {[%clk 0:02:24]} 16...
Qe7 {[%clk 0:02:36.2]} 17. h5 {[%clk 0:02:20.9]} 17... b5 {[%clk 0:02:32.1]} 18.
cxb5 {[%clk 0:02:21]} 18... cxb5 {[%clk 0:02:23.7]} 19. Nxb5 {[%clk 0:02:16.5]}
19... Rfc8 {[%clk 0:02:23.3]} 20. Qa4 {[%clk 0:02:15.6]} 20... Bb6 {[%clk
0:02:02.2]} 21. Bg5 {[%clk 0:01:27.6]} 21... Bc5 {[%clk 0:01:59.7]} 22. h6
{[%clk 0:01:22.4]} 22... Qf7 {[%clk 0:01:59.5]} 23. Rc1 {[%clk 0:01:11.9]} 23...
Ba2+ {[%clk 0:01:50.9]} 24. Ka1 {[%clk 0:01:11.6]} 24... Bb3 {[%clk 0:01:51.1]}
25. Qxa5 {[%clk 0:01:09.9]} 25... Ra8 {[%clk 0:01:51.1]} 26. Qc3 {[%clk
0:01:04]} 26... Rcb8 {[%clk 0:01:16]} 27. hxg7 {[%clk 0:00:54.1]} 27... Nd7
{[%clk 0:01:13.6]} 28. Rh6 {[%clk 0:00:42]} 28... Nb6 {[%clk 0:00:40.5]} 29.
Nxd6 {[%clk 0:00:36.8]} 29... Bxd6 {[%clk 0:00:27.2]} 30. Rxd6 {[%clk
0:00:37.7]} 30... Na4 {[%clk 0:00:27.5]} 31. Qxb3 {[%clk 0:00:20.4]} 31... Rxb3
{[%clk 0:00:23]} 32. Bc4 {[%clk 0:00:21.3]} 32... Nxb2 {[%clk 0:00:19.4]} 33.
Bxf7+ {[%clk 0:00:18.3]} 33... Kxf7 {[%clk 0:00:19.5]} 34. Rc7+ {[%clk
0:00:15.5]} 34... Kg8 {[%clk 0:00:18.6]} 35. Rd8+ {[%clk 0:00:16.1]} 35... Rxd8
{[%clk 0:00:18.2]} 36. Bxd8 {[%clk 0:00:17]} 36... Nd3 {[%clk 0:00:18]} 37. Bf6
{[%clk 0:00:15.4]} 37... Rxa3+ {[%clk 0:00:17.5]} 38. Kb1 {[%clk 0:00:15.8]}
38... Ra8 {[%clk 0:00:18.4]} 39. Rd7 {[%clk 0:00:12.6]} 39... Rb8+ {[%clk
0:00:16]} 40. Kc2 {[%clk 0:00:11.4]} 40... Nb4+ {[%clk 0:00:15.8]} 41. Kd2
{[%clk 0:00:11.2]} 41... Nc6 {[%clk 0:00:15.8]} 42. g4 {[%clk 0:00:10.5]} 42...
Rc8 {[%clk 0:00:12.5]} 43. Ke3 {[%clk 0:00:07.2]} 43... h6 {[%clk 0:00:11.8]}
44. Kf2 {[%clk 0:00:07.3]} 44... Kh7 {[%clk 0:00:10.9]} 45. Kg3 {[%clk
0:00:07.6]} 45... Kg6 {[%clk 0:00:10.3]} 46. Rd6 {[%clk 0:00:05]} 46... Kf7
{[%clk 0:00:10.5]} 47. Kh4 {[%clk 0:00:03.1]} 47... Nd4 {[%clk 0:00:10.7]} 48.
Kg3 {[%clk 0:00:03.6]} 48... Ne2+ {[%clk 0:00:09]} 49. Kf2 {[%clk 0:00:02.5]}
49... Nf4 {[%clk 0:00:07.7]} 50. Bxe5 {[%clk 0:00:00.9]} 50... Ne6 {[%clk
0:00:07.7]} 51. Kg3 {[%clk 0:00:01.7]} 51... Re8 {[%clk 0:00:05.9]} 52. Rd7+
{[%clk 0:00:02]} 52... Kg6 {[%clk 0:00:05.9]} 53. Rd5 {[%clk 0:00:02.9]} 53...
Kf7 {[%clk 0:00:06]} 54. Bd6 {[%clk 0:00:02.1]} 54... Ng5 {[%clk 0:00:05.9]} 55.
Be5 {[%clk 0:00:02.4]} 55... Kg6 {[%clk 0:00:06]} 56. f4 {[%clk 0:00:03.3]}
56... Nxe4+ {[%clk 0:00:05.9]} 57. Kf3 {[%clk 0:00:03.8]} 57... Nf6 {[%clk
0:00:06.3]} 58. Rd6 {[%clk 0:00:03.8]} 58... Kxg7 {[%clk 0:00:04.6]} 59. Bxf6+
{[%clk 0:00:04.2]} 59... Kf7 {[%clk 0:00:04.8]} 60. Be5 {[%clk 0:00:05.1]} 60...
Rc8 {[%clk 0:00:05.3]} 61. Rf6+ {[%clk 0:00:04.9]} 61... Ke7 {[%clk 0:00:05.2]}
62. Rxh6 {[%clk 0:00:05.4]} 62... Ra8 {[%clk 0:00:06.1]} 63. Ke4 {[%clk
0:00:05.9]} 1-0

[Event "*** Titled Tuesday Blitz"]
[Site "Chess.com"]
[Date "2020.12.01"]
[Round "5"]
[White "NeverW84M8"]
[Black "Leo_C"]
[Result "1-0"]
[WhiteElo "2538"]
[BlackElo "2370"]
[TimeControl "180+1"]
[EndTime "10:56:08 PST"]
[Termination "NeverW84M8 won on time"]

1. e4 {[%clk 0:03:00.9]} 1... c6 {[%clk 0:02:59.6]} 2. Nc3 {[%clk 0:03:00.5]}
2... d5 {[%clk 0:02:59.3]} 3. Nf3 {[%clk 0:03:01.4]} 3... Bg4 {[%clk 0:02:59.2]}
4. h3 {[%clk 0:03:01.9]} 4... Bh5 {[%clk 0:02:59.4]} 5. exd5 {[%clk 0:02:47.2]}
5... cxd5 {[%clk 0:02:58.6]} 6. d4 {[%clk 0:02:43.9]} 6... Nc6 {[%clk
0:02:56.7]} 7. Bb5 {[%clk 0:02:43]} 7... Rc8 {[%clk 0:02:53.9]} 8. g4 {[%clk
0:02:38.4]} 8... Bg6 {[%clk 0:02:53.3]} 9. Ne5 {[%clk 0:02:38.8]} 9... e6 {[%clk
0:02:53.1]} 10. h4 {[%clk 0:02:37.3]} 10... f6 {[%clk 0:02:52.6]} 11. Nxg6
{[%clk 0:02:34.2]} 11... hxg6 {[%clk 0:02:51.6]} 12. Bd3 {[%clk 0:02:23.8]}
12... Kf7 {[%clk 0:02:48.6]} 13. Be3 {[%clk 0:02:20.1]} 13... Bd6 {[%clk
0:02:46.7]} 14. Qf3 {[%clk 0:02:19]} 14... Nge7 {[%clk 0:02:38.8]} 15. a3 {[%clk
0:02:18.8]} 15... Qb6 {[%clk 0:02:31.6]} 16. Nb5 {[%clk 0:02:05.8]} 16... Bb8
{[%clk 0:02:25.2]} 17. O-O-O {[%clk 0:02:01]} 17... a6 {[%clk 0:02:19.4]} 18.
Nc3 {[%clk 0:02:01]} 18... Bd6 {[%clk 0:02:11]} 19. Na4 {[%clk 0:02:00.6]} 19...
Qa5 {[%clk 0:01:59.9]} 20. Nc5 {[%clk 0:02:00.6]} 20... Bxc5 {[%clk 0:01:51.7]}
21. dxc5 {[%clk 0:02:00.2]} 21... d4 {[%clk 0:01:51.2]} 22. Bd2 {[%clk
0:01:50.9]} 22... Qxc5 {[%clk 0:01:50.6]} 23. Kb1 {[%clk 0:01:36.2]} 23... Ne5
{[%clk 0:01:46]} 24. Qe4 {[%clk 0:01:23.2]} 24... Nxd3 {[%clk 0:01:33.4]} 25.
Qxd3 {[%clk 0:01:22.6]} 25... Qc4 {[%clk 0:01:26.5]} 26. Qxc4 {[%clk 0:01:14.2]}
26... Rxc4 {[%clk 0:01:25.8]} 27. b3 {[%clk 0:01:15.1]} 27... Rcc8 {[%clk
0:01:22.7]} 28. f4 {[%clk 0:01:04.3]} 28... Nc6 {[%clk 0:01:22]} 29. Be1 {[%clk
0:01:02]} 29... e5 {[%clk 0:01:16.8]} 30. fxe5 {[%clk 0:01:01.3]} 30... fxe5
{[%clk 0:01:13]} 31. Bg3 {[%clk 0:01:00.9]} 31... e4 {[%clk 0:01:10.6]} 32.
Rhf1+ {[%clk 0:00:57.1]} 32... Ke6 {[%clk 0:01:10.3]} 33. Rf4 {[%clk 0:00:57.9]}
33... e3 {[%clk 0:01:03.2]} 34. c3 {[%clk 0:00:50.6]} 34... e2 {[%clk
0:00:37.2]} 35. Re4+ {[%clk 0:00:47.7]} 35... Kf7 {[%clk 0:00:31.1]} 36. Rxe2
{[%clk 0:00:48.6]} 36... dxc3 {[%clk 0:00:31]} 37. Rd7+ {[%clk 0:00:47.7]} 37...
Kg8 {[%clk 0:00:30.4]} 38. Kc2 {[%clk 0:00:31]} 38... Kh7 {[%clk 0:00:21.5]} 39.
g5 {[%clk 0:00:19.7]} 39... Rhf8 {[%clk 0:00:14.1]} 40. Rf2 {[%clk 0:00:14.5]}
40... Rfe8 {[%clk 0:00:12.3]} 41. Bf4 {[%clk 0:00:13.8]} 41... Re4 {[%clk
0:00:09]} 42. Bc1 {[%clk 0:00:12.6]} 42... Nd4+ {[%clk 0:00:08.7]} 43. Kd3
{[%clk 0:00:12]} 43... Nxb3 {[%clk 0:00:08.1]} 44. Kxe4 {[%clk 0:00:11.6]} 44...
Nxc1 {[%clk 0:00:08.3]} 45. Rxb7 {[%clk 0:00:11.2]} 45... Na2 {[%clk 0:00:05.6]}
46. Rxa2 {[%clk 0:00:11]} 46... c2 {[%clk 0:00:05.1]} 47. Rxc2 {[%clk
0:00:11.4]} 47... Rxc2 {[%clk 0:00:05.6]} 48. Rb6 {[%clk 0:00:12.3]} 48... Rh2
{[%clk 0:00:05.5]} 49. Rxa6 {[%clk 0:00:12.1]} 49... Rxh4+ {[%clk 0:00:05.9]}
50. Kd5 {[%clk 0:00:11.4]} 50... Rg4 {[%clk 0:00:06.1]} 51. a4 {[%clk
0:00:11.4]} 51... Rxg5+ {[%clk 0:00:06.6]} 52. Kc6 {[%clk 0:00:11.8]} 52... Rf5
{[%clk 0:00:06.8]} 53. Rb6 {[%clk 0:00:11.8]} 53... g5 {[%clk 0:00:07.3]} 54.
Rb5 {[%clk 0:00:11.7]} 54... Rf4 {[%clk 0:00:03.8]} 55. a5 {[%clk 0:00:09.5]}
55... Ra4 {[%clk 0:00:00.9]} 56. Kb6 {[%clk 0:00:05]} 56... Kh6 {[%clk
0:00:01.8]} 57. a6 {[%clk 0:00:04.9]} 57... Rxa6+ {[%clk 0:00:01.8]} 58. Kxa6
{[%clk 0:00:05.1]} 58... Kh5 {[%clk 0:00:02.4]} 59. Ka5 {[%clk 0:00:05]} 59...
Kh4 {[%clk 0:00:03.3]} 60. Kb4 {[%clk 0:00:05.2]} 60... g4 {[%clk 0:00:03.9]}
61. Kc3 {[%clk 0:00:05.9]} 61... Kh3 {[%clk 0:00:04.4]} 62. Kd2 {[%clk
0:00:05.6]} 62... g3 {[%clk 0:00:05.3]} 63. Rg5 {[%clk 0:00:05]} 63... g2 {[%clk
0:00:04.9]} 64. Ke2 {[%clk 0:00:04.9]} 64... Kh2 {[%clk 0:00:05.5]} 65. Kf2
{[%clk 0:00:05.3]} 65... g1=Q+ {[%clk 0:00:05.8]} 66. Rxg1 {[%clk 0:00:05.4]}
66... g5 {[%clk 0:00:06.7]} 67. Rxg5 {[%clk 0:00:05.6]} 1-0